Cogmind - Beta 10.1 @@@ ROGUE MODE // 2020.10.12 @ 21:19:27 Player: Cracklepappy Result: Destroyed by EX-DEC with AWS/EX-DEC Performance ------------- Evolutions (1) 500 Regions Visited (5) 1000 Robots Destroyed (103) 515 Value Destroyed (1962) 1962 Prototype IDs (29) 580 Alien Tech Used (0) 0 Bonus (-1516) -1516 TOTAL SCORE: 3041 Bonus ------- High Alert Combat Kills 19 Aligned with FarCom 300 Friendly Fire -1835 Cogmind --------- Core Integrity 0/400 Matter 127/300 Energy 96/100 System Corruption 3% Temperature Cool (2) Movement Treading (180) Ox1 Location -9/Exiles Parts ------- > --- POWER (1) -------- (None) > --- PROPULSION (2) --- Light Treads Light Treads > --- UTILITY (4) ------ High-capacity Storage Unit High-capacity Storage Unit Salvage Targeting Computer Advanced Targeting Computer > --- WEAPON (2) ------- Light Assault Rifle Katana > --- INVENTORY (20) --- Light Nuclear Core Light Treads Medium Storage Unit Medium Storage Unit Large Storage Unit High-capacity Storage Unit Medium Matter Pod (100) High-capacity Matter Pod (103) Gravity Neutralizing Apparatus Experimental Targeting Computer Hacking Suite Firepult Light Assault Rifle Light Assault Rifle Slug Cannon Rocket Launcher Peak State ------------ > --- POWER ------------ Deuterium Engine > --- PROPULSION ------- Light Treads Light Treads > --- UTILITY ---------- Humpback Advanced Targeting Computer Light Armor Plating > --- WEAPON ----------- Firepult > --- INVENTORY -------- Light Nuclear Core Light Treads Light Treads Light Treads High-capacity Matter Pod Gravity Neutralizing Apparatus Salvage Targeting Computer Experimental Targeting Computer Light Assault Rifle Light Assault Rifle Light Assault Rifle Slug Cannon Rocket Launcher Katana [Rating: 34] Favorites ----------- Power Heavy Ion Engine Engine Heavy Ion Engine Propulsion Light Treads Treads Light Treads Leg Aluminum Leg Wheel Compact Wheel Utility Large Storage Unit Device Cloak of Protection Storage Large Storage Unit Processor Advanced Targeting Computer Protection Medium Armor Plating Weapon Light Assault Rifle Energy Cannon Firepult Ballistic Gun Light Assault Rifle Ballistic Cannon Light Cannon Launcher Rocket Launcher Slashing Weapon Katana Build | -11 -10 -10 -9 -9 -9 ------- Run | Scr Mat Min Mat Min Exi Slots Evolved 2 | . . . 2 . . Power . | . . . . . . Propulsion . | . . . . . . Utility 2 | . . . 2 . . Weapon . | . . . . . . Parts Attached 94 | 6 18 5 27 3 35 Power 7 | 1 1 2 2 . 1 Engine 7 | 1 1 2 2 . 1 Core . | . . . . . . Reactor . | . . . . . . Propulsion 19 | 2 5 2 5 . 5 Treads 11 | . 4 . 2 . 5 Leg 4 | . . 2 2 . . Wheel 4 | 2 1 . 1 . . Hover . | . . . . . . Flight . | . . . . . . Utility 27 | 1 4 . 4 . 18 Device 2 | . . . . . 2 Storage 18 | 1 4 . 3 . 10 Processor 2 | . . . . . 2 Hackware . | . . . . . . Protection 5 | . . . 1 . 4 Artifact . | . . . . . . Weapon 41 | 2 8 1 16 3 11 Energy Gun . | . . . . . . Energy Cannon 3 | . . . 1 . 2 Ballistic Gun 13 | 2 2 . 5 . 4 Ballistic Cannon 12 | . 5 . 5 . 2 Launcher 9 | . 1 1 5 2 . Special Weapon . | . . . . . . Impact Weapon . | . . . . . . Slashing Weapon 4 | . . . . 1 3 Piercing Weapon . | . . . . . . Special Melee Weapon . | . . . . . . Unidentified Prototypes 3 | . . . 2 . 1 Parts Lost 31 | . 6 3 8 . 14 Power 5 | . 2 1 . . 2 Propulsion 12 | . 2 2 3 . 5 Utility 5 | . . . 1 . 4 Weapon 9 | . 2 . 4 . 3 Highest Loss Streak 5 | . 2 2 3 . 5 Average Slot Usage (%) 93 | . 90 98 93 100 85 Engine 10 | . 10 12 11 11 9 Treads 16 | . 20 1 7 22 21 Leg 4 | . . 24 7 . . Wheel 1 | . 4 1 4 . . Storage 31 | . 26 28 37 44 19 Processor 2 | . . . . . 9 Protection 1 | . . . 2 . 5 Ballistic Gun 10 | . 21 . 6 11 8 Ballistic Cannon 5 | . 6 15 13 . 1 Launcher 6 | . . 12 1 9 6 Naked Turns . | . . . . . . Heaviest Build 157 | 10 38 44 111 109 157 Greatest Support 40 | 20 40 20 20 40 40 Greatest Overweight (x) 6 | . 2 4 6 2 5 Average Overweight (x) 2 | . . 1 4 2 1 Largest Inventory Capacity 40 | 6 16 16 32 32 40 Average Capacity 23 | 5 8 16 26 32 24 Most Carried 36 | 6 16 16 32 32 36 Average Carried 21 | 4 8 15 25 31 20 Final Capacity 32 | 6 16 16 32 32 20 Final Carried 32 | 6 16 16 32 32 17 Class Distribution -------------------- 69% | Hauler-Mutant 30% | Mutant Dominant Class ---------------- Mutant | -10/Materials Mutant | -10/Mines Hauler-Mutant | -9/Materials Hauler-Mutant | -9/Mines Hauler-Mutant | -9/Exiles Resources | -11 -10 -10 -9 -9 -9 ----------- Run | Scr Mat Min Mat Min Exi Matter Collected 3082 | 284 643 156 1150 289 560 Remotely . | . . . . . . Salvage Created 2677 | 116 821 205 1180 104 251 Parts 201 | 6 58 18 103 . 16 Haulers Intercepted 5 | . 1 . 4 . . Recyclers Shooed 5 | . 1 . 4 . . Parts Field Recycled . | . . . . . . Retrieved Matter . | . . . . . . Parts Self-Destructed . | . . . . . . Prevented . | . . . . . . Kills | -11 -10 -10 -9 -9 -9 ------- Run | Scr Mat Min Mat Min Exi Combat Hostiles Destroyed 63 | . 16 9 31 3 4 Melee 1 | . . . . . 1 Guns 14 | . 11 . 3 . . Cannons 24 | . 2 3 19 . . AOE 24 | . 3 6 9 3 3 Classes Destroyed 15 | 2 7 . 3 1 2 Worker 9 | . 2 . 7 . . Builder 2 | . 2 . . . . Tunneler 3 | 2 . . . 1 . Hauler 5 | . 1 . 4 . . Recycler 4 | 1 2 . 1 . . Operator 3 | . 1 . 2 . . Turret 1 | . . . . . 1 Watcher 4 | . 2 . 2 . . Swarmer 17 | . 3 5 9 . . Grunt 31 | . 13 4 14 . . Brawler 3 | . . . 3 . . Duelist 1 | . . . 1 . . Sentry 4 | . . . 4 . . Zionite 7 | . . . . . 7 Assembled 6 | . . . . 3 3 Best Kill Streak 7 | 2 5 4 7 3 3 Combat Bots Only 4 | . 3 4 4 2 3 Max Kills in Single Turn 4 | 1 2 2 4 1 3 Gunslinging . | . . . . . . Exploded 3 | . 2 2 2 1 3 Melee 1 | . . . . . 1 Uniques/NPCs Destroyed 3 | . . . . 1 2 YI-UF0 (-9/Mines) 8R-AWN (-9/Exiles) EX-BIN (-9/Exiles) Combat | -11 -10 -10 -9 -9 -9 -------- Run | Scr Mat Min Mat Min Exi Damage Taken 5062 | . 1022 253 1466 86 2235 Core 612 | . 165 37 193 . 217 Absorbed by Shields . | . . . . . . Core Remaining (%) 59 | 100 . 19 . . . Volleys Fired 364 | 6 102 15 133 10 98 Largest 2 | 2 2 2 2 1 2 Hottest 250 | 40 70 70 70 33 250 Shots Fired 611 | 12 194 24 230 10 141 Gun 329 | 12 168 . 39 . 110 Cannon 243 | . 19 19 176 . 29 Launcher 39 | . 7 5 15 10 2 Special . | . . . . . . Kinetic 564 | 12 187 19 215 . 131 Thermal 8 | . . . . . 8 Explosive 21 | . 7 . 2 10 2 Electromagnetic 18 | . . 5 13 . . Robot Hit Streak 29 | 5 29 2 16 2 25 Robot Miss Streak 5 | 1 3 4 5 4 4 Penetration Max 1 | . . . . . 1 Secondary Targets . | . . . . . . Shots Hit Robots 442 | 8 129 12 140 8 145 Core Hits 172 | 4 46 12 63 7 40 Critical Hits 2 | . . . . . 2 Critical Kills . | . . . . . . Critical Parts Destroyed 2 | . . . . . 2 Melee Attacks 36 | . . . . 5 31 Impact . | . . . . . . Slashing 36 | . . . . 5 31 Piercing . | . . . . . . Sneak Attacks 5 | . . . . 5 . Combat Hostiles . | . . . . . . Follow-up Attacks . | . . . . . . Damage Inflicted 8094 | 56 1562 378 2750 911 2437 Guns 2346 | 56 1115 . 191 . 984 Cannons 2568 | . 125 192 1812 . 439 Explosions 1938 | . 322 186 747 466 217 Melee 1242 | . . . . 445 797 Ramming . | . . . . . . Kinetic 4840 | 56 1240 192 2003 . 1349 Thermal 371 | . . 34 160 . 177 Explosive 1126 | . 322 . 224 466 114 Electromagnetic 515 | . . 152 363 . . Impact . | . . . . . . Slashing 1242 | . . . . 445 797 Piercing . | . . . . . . Highest Corruption 3 | . 3 3 2 2 3 Average Corruption 2 | . 2 3 2 2 2 Corruption Purged . | . . . . . . Effects 81 | . 12 10 12 17 30 Message Errors 27 | . 5 3 7 4 8 Matter Fused 8 | . 3 4 . . 1 Heat Flow Errors 12 | . 1 2 1 5 3 Energy Discharges 17 | . . . 4 6 7 Data Loss (minor) 12 | . 2 1 . 2 7 Targeting Errors 4 | . 1 . . . 3 Weapon Failures 1 | . . . . . 1 Overload Shots . | . . . . . . Overflow Damage 159 | . 9 5 40 105 . Projectiles 52 | . 9 5 38 . . Explosions 45 | . . . 2 43 . Melee 62 | . . . . 62 . Knockbacks 23 | . 1 3 15 . 4 Impact . | . . . . . . Kinetic 23 | . 1 3 15 . 4 Secondary . | . . . . . . Self-Inflicted Damage 191 | . 30 40 80 41 . Shots 13 | . 2 3 6 2 . Rammed . | . . . . . . Targets Rammed . | . . . . . . Kicked . | . . . . . . Crushed . | . . . . . . Highest Temperature 421 | . 273 182 183 146 421 Average Temperature 60 | . 33 51 33 74 122 Received Heat Transfer 1029 | . 522 84 423 . . Effects 9 | . 2 . . . 7 Shutdowns 1 | . . . . . 1 Energy Bleed 2 | . . . . . 2 Interference 4 | . 2 . . . 2 Matter Decay 2 | . . . . . 2 Siege Activations . | . . . . . . Robots Corrupted . | . . . . . . Combat Hostiles . | . . . . . . Parts Fried . | . . . . . . Impact Corruptions . | . . . . . . Robots Melted 1 | . . . . . 1 Combat Hostiles . | . . . . . . Parts Melted . | . . . . . . Heat Transferred 970 | . . 100 150 . 720 Parts Sabotaged . | . . . . . . Parts Stolen . | . . . . . . Parts Stripped . | . . . . . . Power Chain Reactions 8 | . . 4 4 . . Missiles Intercepted . | . . . . . . Alert | -11 -10 -10 -9 -9 -9 ------- Run | Scr Mat Min Mat Min Exi Peak Influence 428 | 15 242 218 428 133 . Initial 133 | . 9 38 . 133 . Average 90 | 6 99 75 200 20 . Maximum Alert Level 2 | . 1 1 2 . . Low Security (%) 82 | 100 94 77 50 100 . Level 1 15 | . 5 22 43 . . Level 2 1 | . . . 6 . . Level 3 . | . . . . . . Level 4 . | . . . . . . Level 5 . | . . . . . . High Security . | . . . . . . Max Security . | . . . . . . Squads Dispatched 5 | . 3 . 2 . . Investigation . | . . . . . . Extermination . | . . . . . . Reinforcement 5 | . 3 . 2 . . Assault . | . . . . . . Garrison . | . . . . . . Intercept . | . . . . . . Construction Impeded . | . . . . . . Haulers Reinforced . | . . . . . . Stealth | -11 -10 -10 -9 -9 -9 --------- Run | Scr Mat Min Mat Min Exi Distress Signals 3 | . 2 . 1 . . Communications Jammed . | . . . . . . Distress Signals . | . . . . . . Times Spotted 166 | . 30 10 61 4 61 Peak Tracking Total 9 | . 4 5 8 2 9 Tactical Retreats 21 | . 1 . 7 1 12 Traps | -11 -10 -10 -9 -9 -9 ------- Run | Scr Mat Min Mat Min Exi Traps Triggered 2 | . 2 . . . . Indirectly . | . . . . . . Trap Hack Attempts . | . . . . . . Triggered . | . . . . . . Disarmed . | . . . . . . Reprogrammed . | . . . . . . Reused . | . . . . . . Traps Extracted . | . . . . . . Installed . | . . . . . . Triggered . | . . . . . . Exploded 3 | . . . . . 3 Machines | -11 -10 -10 -9 -9 -9 ---------- Run | Scr Mat Min Mat Min Exi Machines Disabled 14 | . 2 . 6 . 6 Max in Single Turn 1 | . 1 . 1 . 1 Machines Sabotaged . | . . . . . . Garrisons Compromised . | . . . . . . Overloaded Fab Kills . | . . . . . . Fab Network Shutdowns . | . . . . . . Hacking | -11 -10 -10 -9 -9 -9 --------- Run | Scr Mat Min Mat Min Exi Machines Accessed 9 | . 5 . 2 . 2 Terminals 6 | . 4 . 2 . . Fabricators . | . . . . . . Repair Stations . | . . . . . . Recycling Units 1 | . 1 . . . . Scanalyzers . | . . . . . . Garrison Access . | . . . . . . Total Hacks 22 | . 15 . 5 . 2 Successful 9 | . 5 . 2 . 2 Failed 13 | . 10 . 3 . . Catastrophic 3 | . 2 . 1 . . Database Lockouts . | . . . . . . Manual 13 | . 9 . 3 . 1 Terminals 18 | . 13 . 5 . . Fabricators . | . . . . . . Repair Stations . | . . . . . . Recycling Units 2 | . 2 . . . . Scanalyzers . | . . . . . . Garrison Access . | . . . . . . Terminal Hacks 7 | . 3 . 2 . 2 Record 1 | . . . . . 1 Prototype ID Bank 2 | . 2 . . . . Unreport Threat 1 | . . . 1 . . Locate Traps 1 | . . . 1 . . Hauler Manifests 1 | . 1 . . . . EX-Prototype ID Bank 1 | . . . . . 1 Fabricator Hacks . | . . . . . . Repair Station Hacks . | . . . . . . Recycling Unit Hacks . | . . . . . . Scanalyzer . | . . . . . . Garrison Access Hacks . | . . . . . . Unauthorized Hacks 2 | . 2 . . . . Terminals 2 | . 2 . . . . Track 1 | . 1 . . . . Assimilate 1 | . 1 . . . . Fabricators . | . . . . . . Repair Stations . | . . . . . . Recycling Units . | . . . . . . Scanalyzers . | . . . . . . Garrison Access . | . . . . . . Data Cores Recovered . | . . . . . . Used . | . . . . . . Hacking Detections 7 | . 5 . 2 . . Full Trace Events 1 | . 1 . . . . Feedback Events 1 | . 1 . . . . Corruption 1 | . 1 . . . . Feedback Blocked . | . . . . . . Robot Schematics Acquired . | . . . . . . Robots Built . | . . . . . . Matter . | . . . . . . Time . | . . . . . . Total Robot Build Rating . | . . . . . . Part Schematics Acquired . | . . . . . . Parts Built . | . . . . . . Matter . | . . . . . . Time . | . . . . . . Total Part Build Rating . | . . . . . . Parts Repaired . | . . . . . . Time . | . . . . . . Parts Recycled . | . . . . . . Recycled Matter . | . . . . . . Retrieved Matter . | . . . . . . Retrieved Components . | . . . . . . Parts Scanalyzed . | . . . . . . Part Schematics Acquired . | . . . . . . Parts Damaged . | . . . . . . Bothacking | -11 -10 -10 -9 -9 -9 ------------ Run | Scr Mat Min Mat Min Exi Used RIF Installer . | . . . . . . Robots Hacked . | . . . . . . Non-combat . | . . . . . . Combat . | . . . . . . Robot Hacks Applied . | . . . . . . Relay Couplers Released . | . . . . . . Robots Rewired . | . . . . . . Allies Hacked . | . . . . . . Hacks Repelled . | . . . . . . Allies | -11 -10 -10 -9 -9 -9 -------- Run | Scr Mat Min Mat Min Exi Total Allies 1 | . . . . 1 . Largest Group 1 | . . . . 1 1 Highest-Rated Group 31 | . . . . 31 31 Highest-Rated Ally 31 | . . . . 31 31 Total Orders . | . . . . . . Ally Attacks . | . . . . . . Total Damage . | . . . . . . Kills . | . . . . . . Allies Corrupted . | . . . . . . Allies Melted . | . . . . . . Intel | -11 -10 -10 -9 -9 -9 ------- Run | Scr Mat Min Mat Min Exi Robot Analysis Total . | . . . . . . Derelict Logs Recovered 4 | . . 2 . 2 . Drone Launches . | . . . . . . Drone Recoveries . | . . . . . . Exploration | -11 -10 -10 -9 -9 -9 ------------- Run | Scr Mat Min Mat Min Exi Turns Passed 9514 | 119 1438 997 1766 2579 2615 Spaces Moved 3740 | 108 750 537 673 592 1080 Core 2 | 2 . . . . . Treads 2245 | . 469 . 104 592 1080 Legs 753 | . . 492 261 . . Wheels 740 | 106 281 45 308 . . Hover . | . . . . . . Flight . | . . . . . . Fastest Speed 50 | 50 80 120 130 200 160 Average Speed 179 | 79 140 174 195 200 198 Slowest Speed 270 | 80 160 240 270 200 260 Overloaded Moves . | . . . . . . Propulsion Burnouts . | . . . . . . Robots Hopped . | . . . . . . Cave-ins Triggered . | . . . . . . Exploration Rate (%) 71 | 4 95 99 55 99 78 Regions Visited 5 Branch Regions 3 Pre-discovered Areas 2 | . . . . 1 1 Known Exits Taken . | . . . . . . Unknown Exits Taken 5 | 1 1 1 1 1 . Scrap Searched 3 | . . 2 . 1 . Spaces Dug 15 | . 11 . . 4 . Terrain Destroyed 230 | . 30 21 80 67 32 Melee . | . . . . . . Projectile 6 | . . . . . 6 AOE 224 | . 30 21 80 67 26 Terrain Rammed . | . . . . . . Walls Destroyed . | . . . . . . Machines Disabled . | . . . . . . Actions | -11 -10 -10 -9 -9 -9 --------- Run | Scr Mat Min Mat Min Exi Total 5925 | 128 962 573 903 1970 1389 Wait 1527 | . 61 13 15 1357 81 Move 3735 | 107 749 536 672 591 1080 Hop . | . . . . . . Pick Up 100 | 8 20 3 38 2 29 Fast Attach 20 | 5 6 2 4 . 3 Attach 37 | 1 4 2 8 . 22 Detach 4 | . . . . . 4 Swap 37 | . 8 1 15 3 10 Drop 65 | 1 12 1 18 2 31 Fire 364 | 6 102 15 133 10 98 Melee 36 | . . . . 5 31 Ram . | . . . . . . Kick . | . . . . . . Crush . | . . . . . . Escape Stasis . | . . . . . . Rewire . | . . . . . . Trap . | . . . . . . Miscellaneous . | . . . . . . Route ------- -11/Scrapyard -10/Materials (discovered 5 exits: *Mat x3 / [*Min x2]) -10/Mines (discovered 2 exits: *Mat x2) -9/Materials (discovered 3 exits: *Mat / [*Min] / [*Sto]) -9/Mines (discovered 3 exits: *Mat x2 / *Exi) -9/Exiles (discovered 1 exit: [*Min]) History --------- Turn | Location | Event 12 | -11/Scrapyard | Discovered new exit (range 15) 120 | -11/Scrapyard | Entered Materials 283 | -10/Materials | Discovered new exit (range 16) 309 | -10/Materials | Build established: Mutant 720 | -10/Materials | Discovered new exit (range 7) 965 | -10/Materials | Core integrity fell below 50% 989 | -10/Materials | Discovered new exit (range 10) 1131 | -10/Materials | Discovered new exit (range 7) 1337 | -10/Materials | Discovered new exit (range 12) 1558 | -10/Materials | Entered Mines 1654 | -10/Mines | Core integrity fell below 20% 1745 | -10/Mines | Learned 2 Materials zone layouts 1912 | -10/Mines | Discovered new exit (range 15) 2164 | -10/Mines | Received a Rocket Launcher from a helpful Derelict 2175 | -10/Mines | Discovered new exit (range 7) 2337 | -10/Mines | Learned Materials garrison access intel 2555 | -10/Mines | Entered Materials 2555 | -9/Materials | Evolved 2 slots: Utility x2 2556 | -9/Materials | Identified exit to Materials 3011 | -9/Materials | Lost 3 parts (1n1u1w) 3063 | -9/Materials | Build established: Hauler-Mutant 4115 | -9/Materials | Discovered new exit (range 8) 4115 | -9/Materials | Discovered new exit (range 15) 4321 | -9/Materials | Entered Mines 4376 | -9/Mines | Assembled infested the area 5786 | -9/Mines | YI-UF0 nonchalantly dropped a Grenade Launcher on the ground 5805 | -9/Mines | Destroyed YI-UF0 6086 | -9/Mines | Discovered exit to Materials (range 10) 6090 | -9/Mines | Learned Materials stockpile data 6560 | -9/Mines | A weapon hastily lodged in a ceiling crevice suddenly fell to the ground 6599 | -9/Mines | Discovered exit to Materials (range 5) 6733 | -9/Mines | Learned location of Zion (-6) 6734 | -9/Mines | Received a Mining Laser from a helpful Derelict 6881 | -9/Mines | Deemed a non-threat by the Exiles lab entrance 6883 | -9/Mines | Discovered new exit (range 5) 6900 | -9/Mines | Entered Exiles 6900 | -9/Exiles | Accompanied by 1 ally 6950 | -9/Exiles | Met 8R-AWN 6984 | -9/Exiles | Met EX-HEX 7121 | -9/Exiles | Met EX-DEC 7325 | -9/Exiles | Discovered new exit (range 10) 7793 | -9/Exiles | Met EX-BIN 8182 | -9/Exiles | Aligned with FarCom system 8184 | -9/Exiles | Given EX-Vault access code 8230 | -9/Exiles | Opened EX-Vault 8242 | -9/Exiles | Found Firepult 8251 | -9/Exiles | Found Cloak of Protection 8292 | -9/Exiles | Warned to stay clear of 0b10 Research branches 8424 | -9/Exiles | Attacked by the Exiles 8513 | -9/Exiles | Core integrity fell below 50% 8632 | -9/Exiles | Lost 5 parts (1p1u3w) 8683 | -9/Exiles | Destroyed 8R-AWN 8690 | -9/Exiles | Lost 3 parts (2n1u) 8694 | -9/Exiles | Found Prototype Processor 8976 | -9/Exiles | Core integrity fell below 20% 9092 | -9/Exiles | Lost 5 parts (1p2n2u) 9354 | -9/Exiles | Destroyed EX-BIN 9515 | -9/Exiles | Destroyed by EX-DEC with AWS/EX-DEC Last Messages --------------- 09368_ GM-J5T destroyed. 09373_ AM-PHS destroyed. 09373_ Machine disabled. 09388_ System corrupted: Heat flow error (+159). 09403_ IL5RLQGKCW